fUSD/lending_fUSD_20251011
["ID","MTS","AMOUNT","RATE_DAILY","PERIOD"]
[390779386,1760147440655,-150.47303201,0.00015136,2]
[390779387,1760147440664,-150.0,0.00015136,2]
[390779388,1760147440674,-150.0,0.00015136,2]
[390779389,1760147440684,-150.57262808,0.00015136,2]
[390779390,1760147440693,-150.89604723,0.00015136,2]
[390779391,1760147440703,-151.14593293,0.00015136,2]
[390779392,1760147440712,-420.0,0.00015139,2]
[390779393,1760147440722,-1680.0,0.0001514,2]
[390779394,1760147440732,-2000.0,0.00015148,2]
[390779395,1760147440742,-250.0,0.00015148,2]
[390779396,1760147440751,-500.0,0.00015174,2]
[390779397,1760147440761,-459.0,0.00015174,2]
[390779398,1760147440776,-921.0,0.00015174,2]
[390779399,1760147440786,-478.0,0.00015174,2]
[390779400,1760147440796,-593.0,0.00015174,2]
[390779401,1760147440807,-502.0,0.00015174,2]
[390779402,1760147440817,-1643.0,0.00015174,2]
[390779403,1760147440827,-622.0,0.00015174,2]
[390779404,1760147440837,-222.44366216,0.00015191,2]
[390779405,1760147440848,-150.0,0.00015191,2]
[390779406,1760147440858,-150.0,0.00015191,2]
[390779407,1760147440868,-1680.0,0.00015197,2]
[390779408,1760147440879,-2603.80706,0.0001521,2]
[390779409,1760147440895,-500.0,0.00015229,2]
[390779410,1760147440907,-459.0,0.00015229,2]
[390779411,1760147440918,-921.0,0.00015229,2]
[390779412,1760147440929,-478.0,0.00015229,2]
[390779413,1760147440939,-593.0,0.00015229,2]
[390779414,1760147440948,-1643.0,0.00015229,2]
[390779415,1760147440957,-622.0,0.00015229,2]
[390779416,1760147440967,-203.49972983,0.00015245,2]
[390779417,1760147440977,-150.0,0.00015245,2]
[390779418,1760147440988,-1608.42,0.00015247,2]
[390779419,1760147440997,-500.0,0.00015273,2]
[390779420,1760147441007,-500.0,0.00015273,2]
[390779421,1760147441020,-500.0,0.00015284,2]
[390779422,1760147441029,-459.0,0.00015284,2]
[390779423,1760147441039,-921.0,0.00015284,2]
[390779424,1760147441049,-478.0,0.00015284,2]
[390779425,1760147441059,-593.0,0.00015284,2]
[390779426,1760147441068,-1643.0,0.00015284,2]
[390779427,1760147441078,-622.0,0.00015284,2]
[390779428,1760147441088,-150.0,0.000153,2]
[390779429,1760147441098,-500.0,0.00015338,2]
[390779430,1760147441107,-459.0,0.00015338,2]
[390779431,1760147441117,-921.0,0.00015338,2]
[390779432,1760147441126,-478.0,0.00015338,2]
[390779433,1760147441135,-593.0,0.00015338,2]
[390779434,1760147441145,-1643.0,0.00015338,2]
[390779435,1760147441154,-622.0,0.00015338,2]
[390779436,1760147441163,-2603.80706,0.0001534,2]
[390779437,1760147441172,-201.8300004,0.00015355,2]
[390779438,1760147441182,-171.89,0.00015381,2]
[390779439,1760147441192,-396.90832975,0.00015382,2]
[390779440,1760147441201,-200.0,0.00015387,2]
[390779441,1760147441210,-500.0,0.00015393,2]
[390779442,1760147441219,-459.0,0.00015393,2]
[390779443,1760147441229,-921.0,0.00015393,2]
[390779444,1760147441240,-478.0,0.00015393,2]
[390779445,1760147441255,-593.0,0.00015393,2]
[390779446,1760147441266,-1643.0,0.00015393,2]
[390779447,1760147441276,-622.0,0.00015393,2]
[390779448,1760147441286,-255.0,0.00015429,2]
[390779449,1760147441297,-500.0,0.00015448,2]
[390779450,1760147441307,-459.0,0.00015448,2]
[390779451,1760147441316,-921.0,0.00015448,2]
[390779452,1760147441326,-478.0,0.00015448,2]
[390779453,1760147441335,-593.0,0.00015448,2]
[390779454,1760147441345,-1643.0,0.00015448,2]
[390779455,1760147441354,-622.0,0.00015448,2]
[390779456,1760147441363,-2603.80705,0.0001546,2]
[390779457,1760147441373,-161.48,0.00015462,2]
[390779458,1760147441383,-2263.39,0.00015482,2]
[390779459,1760147441394,-151.0,0.000155,2]
[390779460,1760147441403,-500.0,0.00015503,2]
[390779461,1760147441413,-459.0,0.00015503,2]
[390779462,1760147441422,-921.0,0.00015503,2]
[390779463,1760147441431,-478.0,0.00015503,2]
[390779464,1760147441441,-593.0,0.00015503,2]
[390779465,1760147441450,-1643.0,0.00015503,2]
[390779466,1760147441459,-622.0,0.00015503,2]
[390779467,1760147441468,-200.0,0.00015517,2]
[390779468,1760147441478,-503.19308079,0.00015521,2]
[390779469,1760147441487,-546.1835127,0.00015521,2]
[390779470,1760147441496,-1000.0,0.00015521,2]
[390779471,1760147441505,-1000.0,0.00015521,2]
[390779472,1760147441516,-501.17885123,0.00015521,2]
[390779473,1760147441525,-502.47586662,0.00015521,2]
[390779474,1760147441535,-1000.0,0.00015521,2]
[390779475,1760147441544,-1000.0,0.00015521,2]
[390779476,1760147441554,-1000.0,0.00015521,2]
[390779477,1760147441563,-1000.0,0.00015521,2]
[390779478,1760147441572,-1000.0,0.00015521,2]
[390779479,1760147441581,-1000.0,0.00015521,2]
[390779480,1760147441591,-1000.0,0.00015521,2]
[390779481,1760147441600,-1000.0,0.00015521,2]
[390779482,1760147441609,-1000.0,0.00015521,2]
[390779483,1760147441618,-1000.0,0.00015521,2]
[390779484,1760147441628,-1000.0,0.00015521,2]
[390779485,1760147441637,-1000.0,0.00015521,2]
[390779486,1760147441646,-1020.34466737,0.00015521,2]
[390779487,1760147441655,-501.66824024,0.00015521,2]
[390779488,1760147441664,-1000.0,0.00015521,2]
[390779489,1760147441673,-1132.10678544,0.00015521,2]
[390779490,1760147441682,-1000.0,0.00015521,2]
[390779491,1760147441692,-1000.0,0.00015521,2]
[390779492,1760147441701,-1608.42,0.00015521,2]
[390779493,1760147441710,-500.0,0.00015547,2]
[390779494,1760147441719,-500.0,0.00015547,2]
[390779495,1760147441729,-500.0,0.00015558,2]
[390779496,1760147441739,-459.0,0.00015558,2]
[390779497,1760147441748,-921.0,0.00015558,2]
[390779498,1760147441758,-478.0,0.00015558,2]
[390779499,1760147441771,-593.0,0.00015558,2]
[390779500,1760147441780,-1643.0,0.00015558,2]
[390779501,1760147441790,-622.0,0.00015558,2]
[390779502,1760147441800,-166.85580661,0.00015567,2]
[390779503,1760147441809,-1823.41,0.0001557,2]
[390779504,1760147441819,-2603.80706,0.0001559,2]
[390779505,1760147441828,-444.55039104,0.00015612,2]
[390779506,1760147441837,-459.0,0.00015612,2]
[390779507,1760147441847,-921.0,0.00015612,2]
[390779508,1760147441856,-478.0,0.00015612,2]
[390779509,1760147441866,-593.0,0.00015612,2]
[390779510,1760147441875,-1643.0,0.00015612,2]
[390779511,1760147441886,-622.0,0.00015612,2]
[390779512,1760147441895,-666.0,0.00015637,3]
[390779513,1760147441905,-459.0,0.00015667,2]
[390779514,1760147441917,-921.0,0.00015667,2]
[390779515,1760147441926,-478.0,0.00015667,2]
[390779516,1760147441935,-593.0,0.00015667,2]
[390779517,1760147441947,-1643.0,0.00015667,2]
[390779518,1760147441956,-622.0,0.00015667,2]
[390779519,1760147441965,-2603.80706,0.0001571,2]
[390779520,1760147441974,-459.0,0.00015722,2]
[390779521,1760147441984,-921.0,0.00015722,2]
[390779522,1760147441993,-478.0,0.00015722,2]
[390779523,1760147442002,-593.0,0.00015722,2]
[390779524,1760147442012,-1643.0,0.00015722,2]
[390779525,1760147442026,-622.0,0.00015722,2]
[390779526,1760147442035,-459.0,0.00015777,2]
[390779527,1760147442044,-921.0,0.00015777,2]
[390779528,1760147442053,-478.0,0.00015777,2]
[390779529,1760147442063,-593.0,0.00015777,2]
[390779530,1760147442072,-1643.0,0.00015777,2]
[390779531,1760147442083,-622.0,0.00015777,2]
[390779532,1760147442093,-1608.42,0.00015795,2]
[390779533,1760147442103,-1009.46943614,0.00015808,2]
[390779534,1760147442113,-500.0,0.00015821,2]
[390779535,1760147442123,-500.0,0.00015821,2]
[390779536,1760147442133,-459.0,0.00015832,2]
[390779537,1760147442143,-921.0,0.00015832,2]
[390779538,1760147442152,-478.0,0.00015832,2]
[390779539,1760147442162,-593.0,0.00015832,2]
[390779540,1760147442171,-1643.0,0.00015832,2]
[390779541,1760147442181,-622.0,0.00015832,2]
[390779542,1760147442190,-459.0,0.00015886,2]
[390779543,1760147442201,-921.0,0.00015886,2]
[390779544,1760147442210,-478.0,0.00015886,2]
[390779545,1760147442221,-593.0,0.00015886,2]
[390779546,1760147442230,-1643.0,0.00015886,2]
[390779547,1760147442240,-622.0,0.00015886,2]
[390779548,1760147442250,-200.0,0.00015935,2]
[390779549,1760147442260,-459.0,0.00015941,2]
[390779550,1760147442273,-921.0,0.00015941,2]
[390779551,1760147442282,-478.0,0.00015941,2]
[390779552,1760147442291,-593.0,0.00015941,2]
[390779553,1760147442302,-1643.0,0.00015941,2]
[390779554,1760147442311,-622.0,0.00015941,2]
[390779555,1760147442321,-513.31,0.00015947,2]
[390779556,1760147442330,-459.0,0.00015996,2]
[390779557,1760147442340,-921.0,0.00015996,2]
[390779558,1760147442349,-478.0,0.00015996,2]
[390779559,1760147442359,-593.0,0.00015996,2]
[390779560,1760147442369,-1643.0,0.00015996,2]
[390779561,1760147442556,-622.0,0.00015996,2]
[390779562,1760147442567,-151.0,0.00016,2]
[390779563,1760147442576,-5453.67,0.00016,2]
[390779564,1760147442586,-10000.0,0.00016,2]
[390779565,1760147442595,-475.17222148,0.00016,3]
[390779566,1760147442605,-459.0,0.00016051,2]
[390779567,1760147442614,-921.0,0.00016051,2]
[390779568,1760147442624,-478.0,0.00016051,2]
[390779570,1760147442634,-593.0,0.00016051,2]
[390779572,1760147442643,-1643.0,0.00016051,2]
[390779573,1760147442653,-622.0,0.00016051,2]
[390779574,1760147442662,-2253.7857887,0.00016058,2]
[390779575,1760147442674,-1608.42,0.00016068,2]
[390779576,1760147442684,-531.83895124,0.00016068,2]
[390779578,1760147442695,-398.15188537,0.00016068,2]
[390779580,1760147442705,-1500.0,0.00016068,2]
[390779582,1760147442715,-1500.0,0.00016068,2]
[390779584,1760147442725,-1001.04316787,0.00016068,2]
[390779586,1760147442735,-404.41870018,0.00016068,2]
[390779588,1760147442745,-1500.0,0.00016068,2]
[390779590,1760147442755,-1500.0,0.00016068,2]
[390779592,1760147442767,-1500.0,0.00016068,2]
[390779594,1760147442777,-1500.0,0.00016068,2]
[390779596,1760147442787,-1500.0,0.00016068,2]
[390779598,1760147442797,-1500.0,0.00016068,2]
[390779600,1760147442808,-1500.0,0.00016068,2]
[390779602,1760147442817,-1500.0,0.00016068,2]
[390779604,1760147442828,-1500.0,0.00016068,2]
[390779606,1760147442838,-1500.0,0.00016068,2]
[390779608,1760147442848,-1500.0,0.00016068,2]
[390779610,1760147442858,-500.0,0.00016095,2]
[390779612,1760147442868,-500.0,0.00016095,2]
[390779614,1760147442878,-459.0,0.00016105,2]
[390779616,1760147442892,-921.0,0.00016105,2]
[390779618,1760147442902,-478.0,0.00016105,2]
[390779619,1760147442915,-593.0,0.00016105,2]
[390779620,1760147442924,-1643.0,0.00016105,2]
[390779621,1760147442935,-622.0,0.00016105,2]
[390779622,1760147442944,-895.07,0.00016133,2]
[390779623,1760147442954,-171.89,0.0001615,2]
[390779624,1760147442965,-322.38243642,0.0001616,2]
[390779625,1760147442977,-935.38093733,0.0001616,2]
[390779626,1760147442988,-495.7683787,0.0001616,2]
[390779627,1760147442998,-609.68830365,0.0001616,2]
[390779628,1760147443008,-1658.01343901,0.0001616,2]
[390779629,1760147443022,-632.0,0.0001616,2]
[390779630,1760147443032,-150.0,0.00016175,2]
[390779631,1760147443042,-150.48867376,0.00016175,2]
[390779632,1760147443051,-150.0,0.00016175,2]
[390779633,1760147443061,-150.0,0.00016175,2]
[390779634,1760147443070,-500.0,0.00016175,2]
[390779635,1760147443079,-150.0,0.00016175,2]
[390779636,1760147443089,-262.99781052,0.00016175,2]
[390779637,1760147443098,-500.0,0.00016175,2]
[390779638,1760147443108,-252.55714094,0.00016175,2]
[390779639,1760147443118,-500.0,0.00016175,2]
[390779640,1760147443128,-1600.0,0.00016175,2]
[390779641,1760147443138,-200.0,0.000162,2]
[390779642,1760147443147,-150.0,0.0001623,2]
[390779643,1760147443156,-150.0,0.0001623,2]
[390779644,1760147443165,-150.0,0.0001623,2]
[390779645,1760147443175,-500.0,0.0001623,2]
[390779646,1760147443185,-150.0,0.0001623,2]
[390779647,1760147443198,-500.0,0.0001623,2]
[390779648,1760147443208,-500.0,0.0001623,2]
[390779649,1760147443217,-166.85580661,0.00016233,2]
[390779650,1760147443227,-500.0,0.0001627,2]
[390779651,1760147443237,-200.0,0.00016277,2]
[390779652,1760147443247,-298.72970812,0.00016285,2]
[390779653,1760147443257,-251.33843638,0.00016285,2]
[390779654,1760147443272,-150.0,0.00016285,2]
[390779655,1760147443282,-380.8843521,0.00016285,2]
[390779656,1760147443292,-150.0,0.00016285,2]
[390779657,1760147443301,-500.0,0.00016285,2]
[390779658,1760147443311,-358.12322192,0.00016285,2]
[390779659,1760147443321,-178.98333417,0.00016293,2]
[390779660,1760147443331,-207.59332486,0.00016339,2]
[390779661,1760147443340,-150.0,0.00016339,2]
[390779662,1760147443350,-500.0,0.00016339,2]
[390779663,1760147443360,-1608.42,0.00016342,2]
[390779664,1760147443369,-500.0,0.00016369,2]
[390779665,1760147443378,-500.0,0.00016369,2]
[390779666,1760147443388,-851.08892136,0.0001637,2]
[390779667,1760147443397,-253.55219187,0.00016394,2]
[390779668,1760147443407,-500.0,0.00016394,2]
[390779669,1760147443417,-2500.0,0.0001643,2]
[390779670,1760147443426,-2500.0,0.0001643,2]
[390779671,1760147443436,-150.0,0.00016438,2]
[390779672,1760147443445,-500.0,0.00016438,2]
[390779673,1760147443455,-1000.0,0.00016438,2]
[390779674,1760147443464,-200.0,0.0001644,2]
[390779675,1760147443474,-500.0,0.00016449,2]
[390779676,1760147443483,-330.75694145,0.00016465,2]
[390779677,1760147443494,-1000.0,0.00016468,2]
[390779678,1760147443505,-201.92916526,0.00016483,2]
[390779679,1760147443518,-150.0,0.00016493,2]
[390779680,1760147443527,-500.0,0.00016493,2]
[390779681,1760147443537,-155.0,0.00016499,2]
[390779682,1760147443546,-151.0,0.000165,2]
[390779683,1760147443555,-500.0,0.00016504,2]
[390779684,1760147443565,-375.64763145,0.00016518,7]
[390779685,1760147443574,-406.27593151,0.0001653,2]
[390779686,1760147443583,-150.0,0.00016534,2]
[390779687,1760147443593,-189.63,0.00016534,2]
[390779688,1760147443603,-150.0,0.00016534,2]
[390779689,1760147443613,-151.22,0.00016534,2]
[390779690,1760147443623,-150.0,0.00016548,2]
[390779691,1760147443633,-500.0,0.00016548,2]
[390779692,1760147443642,-457.27919647,0.00016559,2]
[390779693,1760147443653,-587.0,0.00016588,2]
[390779694,1760147443662,-2351.0,0.0001659,2]
[390779695,1760147443671,-150.0,0.00016602,2]
[390779696,1760147443681,-500.0,0.00016602,2]
[390779697,1760147443691,-1608.42,0.00016616,2]
[390779698,1760147443701,-254.40297191,0.00016616,2]
[390779699,1760147443710,-615.50769708,0.00016616,2]
[390779700,1760147443720,-2000.0,0.00016616,2]
[390779701,1760147443730,-2070.95181044,0.00016616,2]
[390779702,1760147443739,-2000.0,0.00016616,2]
[390779703,1760147443748,-1464.20877503,0.00016616,2]
[390779704,1760147443758,-1411.25795413,0.00016616,2]
[390779705,1760147443771,-2000.0,0.00016616,2]
[390779706,1760147443780,-2000.0,0.00016616,2]
[390779707,1760147443790,-2000.0,0.00016616,2]
[390779708,1760147443799,-2000.0,0.00016616,2]
[390779709,1760147443809,-1002.55537684,0.00016616,2]
[390779710,1760147443819,-2000.0,0.00016616,2]
[390779711,1760147443829,-500.0,0.00016643,2]
[390779712,1760147443839,-500.0,0.00016643,2]
[390779713,1760147443849,-433.0,0.00016644,2]
[390779714,1760147443858,-150.0,0.00016657,2]
[390779715,1760147443868,-500.0,0.00016657,2]
[390779716,1760147443879,-513.31,0.00016666,2]
[390779717,1760147443891,-200.34996364,0.00016712,2]
[390779718,1760147443901,-500.0,0.00016712,2]
[390779719,1760147443914,-1009.46943614,0.00016716,2]
[390779720,1760147443924,-2351.0,0.00016717,2]
[390779721,1760147443936,-1451.23097198,0.00016755,2]
[390779722,1760147443946,-500.0,0.00016767,2]
[390779723,1760147443956,-8018.5695092,0.00016793,2]
[390779724,1760147443966,-39332.0962302,0.00016815,2]
[390779725,1760147443976,-288031.3319219,0.00016815,2]
[390779726,1760147443986,-500.0,0.00016822,2]
[390779727,1760147443996,-151.0,0.00016835,2]
[390779728,1760147444006,-151.0,0.00016838,2]
[390779729,1760147444018,-2170.276679,0.00016838,2]
[390779730,1760147444029,-2170.276679,0.00016838,2]
[390779731,1760147444038,-1218.723687,0.00016838,2]
[390779732,1760147444049,-2170.276679,0.00016838,2]
[390779733,1760147444059,-1218.723687,0.00016838,2]
[390779734,1760147444068,-2170.276679,0.00016838,2]
[390779735,1760147444078,-1218.723687,0.00016838,2]
[390779736,1760147444087,-1218.723687,0.00016838,2]
[390779737,1760147444096,-199.994054,0.00016838,2]
[390779738,1760147444106,-199.994054,0.00016838,2]
[390779739,1760147444116,-151.0,0.00016838,2]
[390779740,1760147444127,-151.0,0.00016838,2]
[390779741,1760147444136,-151.0,0.00016838,2]
[390779742,1760147444147,-151.0,0.00016838,2]
[390779743,1760147444156,-151.0,0.00016838,2]
[390779744,1760147444166,-199.994054,0.00016838,2]
[390779745,1760147444176,-151.0,0.00016838,2]
[390779746,1760147444185,-151.753943,0.00016838,2]
[390779747,1760147444196,-224.688117,0.00016838,2]
[390779748,1760147444205,-199.994054,0.00016838,2]
[390779749,1760147444215,-151.0,0.00016838,2]
[390779750,1760147444224,-151.0,0.00016838,2]
[390779751,1760147444234,-151.0,0.00016838,2]
[390779752,1760147444244,-151.0,0.00016838,2]
[390779753,1760147444254,-152.917246,0.00016838,2]
[390779754,1760147444263,-151.504256,0.00016838,2]
[390779755,1760147444277,-196.659763,0.00016838,2]
[390779756,1760147444286,-151.504256,0.00016838,2]
[390779757,1760147444296,-160.631054,0.00016838,2]
[390779758,1760147444305,-196.659763,0.00016838,2]
[390779759,1760147444315,-10265.259977,0.00016838,2]
[390779760,1760147444324,-151.504256,0.00016838,2]
[390779761,1760147444333,-160.631054,0.00016838,2]
[390779762,1760147444344,-196.659763,0.00016838,2]
[390779763,1760147444353,-10265.259977,0.00016838,2]
[390779764,1760147444363,-151.504256,0.00016838,2]
[390779765,1760147444373,-196.659763,0.00016838,2]
[390779766,1760147444383,-10265.259977,0.00016838,2]
[390779767,1760147444393,-10265.259977,0.00016838,2]
[390779768,1760147444403,-151.0,0.00016838,2]
[390779769,1760147444413,-151.0,0.00016838,2]
[390779770,1760147444426,-151.0,0.00016838,2]
[390779771,1760147444436,-1180.135026,0.00016838,2]
[390779772,1760147444445,-160.631054,0.00016838,2]
[390779773,1760147444455,-1180.135026,0.00016838,2]
[390779774,1760147444464,-151.0,0.00016838,2]
[390779775,1760147444474,-160.631054,0.00016838,2]
[390779776,1760147444483,-151.0,0.00016838,2]
[390779777,1760147444492,-1180.135026,0.00016838,2]
[390779778,1760147444501,-1180.135026,0.00016838,2]
[390779779,1760147444511,-151.0,0.00016838,2]
[390779780,1760147444523,-151.0,0.00016838,2]
[390779781,1760147444533,-2208.757687,0.00016838,2]
[390779782,1760147444542,-151.0,0.00016838,2]
[390779783,1760147444552,-151.0,0.00016838,2]
[390779784,1760147444561,-2208.757687,0.00016838,2]
[390779785,1760147444571,-158.688697,0.00016838,2]
[390779786,1760147444580,-2208.757687,0.00016838,2]
[390779787,1760147444590,-569.115911,0.00016838,2]
[390779788,1760147444599,-158.688697,0.00016838,2]
[390779789,1760147444609,-2208.757687,0.00016838,2]
[390779790,1760147444618,-569.115911,0.00016838,2]
[390779791,1760147444627,-158.688697,0.00016838,2]
[390779792,1760147444637,-569.115911,0.00016838,2]
[390779793,1760147444647,-158.688697,0.00016838,2]
[390779794,1760147444656,-569.115911,0.00016838,2]
[390779795,1760147444665,-151.0,0.00016838,2]
[390779796,1760147444675,-151.0,0.00016838,2]
[390779797,1760147444685,-283.376728,0.00016838,2]
[390779798,1760147444694,-204.524161,0.00016838,2]
[390779799,1760147444704,-11306.244754,0.00016838,2]
[390779800,1760147444713,-151.0,0.00016838,2]
[390779801,1760147444724,-283.376728,0.00016838,2]
[390779802,1760147444733,-204.524161,0.00016838,2]
[390779803,1760147444744,-11306.244754,0.00016838,2]
[390779804,1760147444754,-283.376728,0.00016838,2]
[390779805,1760147444764,-11306.244754,0.00016838,2]
[390779806,1760147444778,-204.524161,0.00016838,2]
[390779807,1760147444787,-151.0,0.00016838,2]
[390779808,1760147444797,-283.376728,0.00016838,2]
[390779809,1760147444807,-11306.244754,0.00016838,2]
[390779810,1760147444817,-152.663445,0.00016838,2]
[390779811,1760147444828,-204.524161,0.00016838,2]
[390779812,1760147444837,-151.0,0.00016838,2]
[390779813,1760147444847,-218.086251,0.00016838,2]
[390779814,1760147444857,-423.059262,0.00016838,2]
[390779815,1760147444867,-151.0,0.00016838,2]
[390779816,1760147444877,-423.059262,0.00016838,2]
[390779817,1760147444892,-152.013342,0.00016838,2]
[390779818,1760147444902,-218.086251,0.00016838,2]
[390779819,1760147444912,-423.059262,0.00016838,2]
[390779820,1760147444922,-151.0,0.00016838,2]
[390779821,1760147444935,-218.086251,0.00016838,2]
[390779822,1760147444945,-151.0,0.00016838,2]
[390779823,1760147444955,-1195.10803,0.00016838,2]
[390779824,1760147444964,-218.086251,0.00016838,2]
[390779825,1760147444975,-151.0,0.00016838,2]
[390779826,1760147444985,-1195.10803,0.00016838,2]
[390779827,1760147444994,-161.096822,0.00016838,2]
[390779828,1760147445311,-403.601556,0.00016838,2]
[390779829,1760147445378,-151.0,0.00016838,2]
[390779830,1760147445388,-1942.108568,0.00016838,2]
[390779831,1760147445397,-1982.699822,0.00016838,2]
[390779832,1760147445407,-161.096822,0.00016838,2]
[390779833,1760147445417,-1195.10803,0.00016838,2]
[390779834,1760147445427,-403.601556,0.00016838,2]
[390779835,1760147445446,-1942.108568,0.00016838,2]
[390779836,1760147445457,-423.059262,0.00016838,2]
[390779837,1760147445467,-1982.699822,0.00016838,2]
[390779838,1760147445478,-1195.10803,0.00016838,2]
[390779839,1760147445488,-403.601556,0.00016838,2]
[390779840,1760147445499,-161.096822,0.00016838,2]
[390779841,1760147445510,-1942.108568,0.00016838,2]
[390779842,1760147445520,-1982.699822,0.00016838,2]
[390779843,1760147445531,-403.601556,0.00016838,2]
[390779844,1760147445541,-161.096822,0.00016838,2]
[390779845,1760147445551,-1942.108568,0.00016838,2]
[390779846,1760147445561,-1982.699822,0.00016838,2]
[390779847,1760147445572,-151.0,0.00016838,2]
[390779848,1760147445582,-151.0,0.00016838,2]
[390779849,1760147445593,-151.0,0.00016838,2]
[390779850,1760147445602,-151.0,0.00016838,2]
[390779851,1760147445612,-151.0,0.00016838,2]
[390779852,1760147445622,-151.0,0.00016838,2]
[390779853,1760147445632,-151.0,0.00016838,2]
[390779854,1760147445642,-151.0,0.00016838,2]
[390779855,1760147445652,-154.172706,0.00016838,2]
[390779856,1760147445662,-151.0,0.00016838,2]
[390779857,1760147445672,-151.0,0.00016838,2]
[390779858,1760147445682,-151.0,0.00016838,2]
[390779859,1760147445692,-151.0,0.00016838,2]
[390779861,1760147445702,-151.0,0.00016838,2]
[390779862,1760147445712,-151.0,0.00016838,2]
[390779863,1760147445722,-443.443734,0.00016838,2]
[390779864,1760147445732,-443.443734,0.00016838,2]
[390779865,1760147445742,-443.443734,0.00016838,2]
[390779866,1760147445753,-151.0,0.00016838,2]
[390779867,1760147445763,-443.443734,0.00016838,2]
[390779868,1760147445777,-761.303761,0.00016838,2]
[390779869,1760147445787,-160.385436,0.00016838,2]
[390779870,1760147445798,-151.0,0.00016838,2]
[390779871,1760147445809,-761.303761,0.00016838,2]
[390779872,1760147445820,-160.385436,0.00016838,2]
[390779873,1760147445836,-151.0,0.00016838,2]
[390779875,1760147445846,-761.303761,0.00016838,2]
[390779877,1760147445856,-160.385436,0.00016838,2]
[390779879,1760147445867,-232.581332,0.00016838,2]
[390779880,1760147445878,-464.905503,0.00016838,2]
[390779881,1760147445891,-761.303761,0.00016838,2]
[390779882,1760147445902,-160.385436,0.00016838,2]
[390779883,1760147445916,-464.905503,0.00016838,2]
[390779884,1760147445927,-464.905503,0.00016838,2]
[390779885,1760147445938,-464.905503,0.00016838,2]
[390779886,1760147445948,-30906.0,0.00016875,2]
[390779887,1760147445959,-500.0,0.00016876,2]
[390779888,1760147445970,-300.0,0.00016889,2]
[390779889,1760147445980,-1608.42,0.0001689,2]
[390779890,1760147445992,-158.0463401,0.000169,2]
[390779891,1760147446003,-193.00074914,0.000169,2]
[390779892,1760147446014,-166.85580661,0.000169,2]
[390779893,1760147446028,-5996.6630365,0.00016904,2]
[390779894,1760147446038,-500.0,0.00016917,2]
[390779895,1760147446049,-500.0,0.00016917,2]
[390779896,1760147446059,-171.89,0.00016919,2]
[390779897,1760147446070,-500.0,0.00016931,2]
[390779898,1760147446081,-153.9,0.00016948,2]
[390779899,1760147446091,-375.64763145,0.00016978,8]
[390779900,1760147446102,-500.0,0.00016986,2]
[390779901,1760147446113,-151.0,0.00017,2]
[390779902,1760147446124,-250.0,0.00017,2]
[390779903,1760147446135,-1999.99,0.00017,2]
[390779904,1760147446146,-1999.99,0.00017,2]
[390779905,1760147446157,-2000.0,0.00017,2]
[390779906,1760147446168,-2000.0,0.00017,2]
[390779907,1760147446179,-2000.0,0.00017,2]
[390779908,1760147446190,-2000.0,0.00017,2]
[390779909,1760147446201,-2000.0,0.00017,2]
[390779910,1760147446211,-2000.0,0.00017,2]
[390779911,1760147446222,-671.1,0.00017,2]
[390779912,1760147446233,-482.85914795,0.00017014,2]